bitfinex/quotes_ETHUSD_20260305
["timestamp","ask_amount","ask_price","bid_price","bid_amount"]
[1772700497402,2.0514404,2111.6,2110.3,2.24311062]
[1772700497403,1.859,2111.8,2110.7,1.98251199]
[1772700497559,1.859,2111.8,2110.8,1.97849551]
[1772700497763,1.859,2111.8,2111.1,1.97849551]
[1772700497764,0.001,2111.8,2111.1,1.97849551]
[1772700498263,2.0524404,2111.8,2111.0,1.18427285]
[1772700498608,2.0514404,2111.6,2110.6,3.15898054]
[1772700499590,2.0514404,2111.6,2110.7,1.97187727]
[1772700500188,1.18399242,2111.5,2110.8,1.18438506]
[1772700500388,3.1413011,2111.5,2110.8,1.18438506]
[1772700500561,1.95730868,2111.5,2110.8,1.18438506]
[1772700502268,1.95730868,2111.5,2110.8,1.96381651]
[1772700502463,1.18390427,2111.7,2110.8,1.96381651]
[1772700502892,3.14121295,2111.7,2110.8,1.96381651]
[1772700503887,3.14119788,2111.7,2110.8,1.96381651]
[1772700504692,1.95730868,2111.6,2110.9,1.18432895]
[1772700504869,1.95730868,2111.6,2111.0,0.0011]
[1772700505065,1.95830868,2111.6,2111.0,0.0011]
[1772700507369,1.93970952,2111.4,2111.0,0.0011]
[1772700507692,1.93970952,2111.4,2110.8,0.0011]
[1772700508908,3.80470952,2111.4,2110.8,0.0011]
[1772700509592,1.93970952,2111.2,2110.8,0.0011]
[1772700510110,1.93970952,2111.2,2110.2,0.96666415]
[1772700510111,1.93970952,2111.2,2110.2,1.18581761]
[1772700510309,1.93970952,2111.0,2110.2,1.18581761]
[1772700510535,3.1238141,2111.3,2110.3,1.92874388]
[1772700510813,3.05008453,2111.4,2110.3,1.92874388]
[1772700511013,3.12374437,2111.5,2110.3,1.92874388]
[1772700511192,4.99070705,2111.5,2110.3,1.92874388]
[1772700511388,1.867,2111.5,2110.3,1.92874388]
[1772700511720,1.867,2111.5,2110.5,1.92469819]
[1772700511921,0.001,2111.6,2110.5,1.92469819]
[1772700512078,0.001,2111.6,2110.4,1.18460955]
[1772700512079,0.001,2111.6,2110.7,1.92469819]
[1772700512283,0.001,2111.6,2110.8,1.92469819]
[1772700513298,1.868,2112.2,2110.9,1.91819398]
[1772700513500,1.868,2112.2,2111.3,1.9141894]
[1772700513689,3.05161491,2112.2,2111.3,1.9141894]
[1772700514218,1.868,2112.2,2111.3,1.9141894]
[1772700514384,3.0516039,2112.2,2111.3,1.9141894]
[1772700514920,1.868,2112.2,2111.3,1.9141894]
[1772700515821,1.868,2112.2,2111.5,1.90776877]
[1772700516033,4.99132169,2112.2,2111.4,1.18404849]
[1772700516316,3.80770952,2112.2,2111.4,3.09181726]
[1772700516526,1.868,2112.2,2111.4,3.09181726]
[1772700516727,1.868,2112.2,2111.5,1.90227046]
[1772700517290,3.12324131,2112.4,2111.5,1.90227046]
[1772700517497,1.93970952,2112.3,2111.5,1.90227046]
[1772700517722,1.93970952,2112.3,2111.6,1.18393635]
[1772700517942,3.12325865,2112.3,2111.6,1.18393635]
[1772700518232,3.12326229,2112.3,2111.6,1.18393635]
[1772700518441,1.93970952,2112.3,2111.6,1.18393635]
[1772700519093,3.12326041,2112.3,2111.6,1.18393635]
[1772700519292,3.12326041,2112.3,2111.5,6.63801586]
[1772700519293,1.94070952,2112.0,2111.2,3.07840353]
[1772700519500,0.001,2112.0,2111.4,1.89030464]
[1772700519705,1.93970952,2112.7,2111.6,1.88930464]
[1772700520290,4.73541194,2113.1,2111.6,1.88930464]
[1772700520291,1.93970952,2112.9,2111.6,1.88930464]
[1772700520830,1.93970952,2113.0,2111.6,1.88930464]
[1772700521122,1.93970952,2113.0,2111.7,1.88534046]
[1772700521695,3.12291743,2112.9,2111.9,1.88096051]
[1772700522003,1.93970952,2112.8,2111.9,1.88096051]
[1772700522202,1.93970952,2112.8,2111.8,1.18382422]
[1772700522617,3.95862673,2112.8,2111.4,4.73596968]
[1772700522891,1.18320791,2112.9,2111.4,4.73596968]
[1772700522892,1.93970952,2112.7,2111.4,6.61260047]
[1772700523113,3.81470952,2112.6,2111.5,1.87663079]
[1772700523304,1.93970952,2112.5,2111.4,4.73596968]
[1772700523706,1.93970952,2112.3,2111.3,1.18404849]
[1772700524517,1.93970952,2112.3,2111.0,0.0011]
[1772700524706,1.93970952,2112.2,2111.0,1.18533168]
[1772700525499,1.18348797,2112.4,2111.0,0.0011]
[1772700525500,1.93970952,2111.7,2111.0,0.0011]
[1772700525695,1.93970952,2111.6,2111.0,0.0011]
[1772700525896,1.93970952,2111.6,2110.8,0.0011]
[1772700525897,1.93970952,2111.4,2110.8,0.0011]
[1772700527328,3.81870952,2111.3,2110.8,0.0011]
[1772700527530,1.93970952,2111.2,2110.8,0.0011]
[1772700528500,3.12387104,2111.2,2110.8,0.0011]
[1772700528823,1.93970952,2111.2,2110.8,0.0011]
[1772700529312,3.78301592,2111.6,2110.8,0.0011]
[1772700530633,3.08700834,2111.5,2110.8,0.0011]
[1772700531333,1.90301592,2111.5,2110.8,0.0011]
[1772700531903,1.90301592,2111.5,2111.0,0.0011]
[1772700532731,1.90301592,2111.4,2111.0,0.0011]
[1772700535332,1.88,2111.6,2111.0,0.0011]
[1772700535734,3.06394175,2111.6,2111.0,0.0011]
[1772700535914,4.96695767,2111.6,2111.0,0.0011]
[1772700536436,4.96695767,2111.6,2110.8,0.0011]
[1772700536437,1.90301592,2111.5,2110.8,0.0011]
[1772700537138,1.90301592,2111.3,2110.8,0.0011]
[1772700537722,1.882,2111.2,2110.8,0.0011]
[1772700537907,1.90301592,2111.3,2110.8,0.0011]
[1772700538234,3.78401592,2111.3,2110.8,0.0011]
[1772700538802,1.90301592,2111.3,2110.8,0.0011]
[1772700539603,1.881,2111.5,2110.8,0.0011]
[1772700540533,4.73483629,2112.1,2110.8,0.0011]
[1772700540534,3.08680673,2111.9,2110.8,1.80899265]
[1772700540736,1.881,2111.8,2110.8,1.80899265]
[1772700541231,3.0868962,2111.7,2110.9,1.18432895]
[1772700541603,1.90301592,2111.6,2110.9,1.18432895]
[1772700543532,1.18399242,2111.5,2110.8,0.0011]
[1772700543835,1.18399242,2111.5,2111.0,0.0011]
[1772700543836,3.08700834,2111.5,2111.0,0.0011]
[1772700544019,1.90401592,2111.4,2111.0,0.0011]
[1772700545942,1.90301592,2111.3,2111.0,0.0011]
[1772700546932,1.18504971,2111.4,2110.8,0.0011]
[1772700546933,1.90301592,2111.1,2110.8,0.0011]
[1772700548322,1.90301592,2110.9,2110.5,0.14502861]
[1772700548518,1.90301592,2110.9,2110.5,0.0011]
[1772700549147,3.78201592,2111.2,2110.5,1.18563416]
[1772700549640,3.78201592,2111.2,2110.5,2.95363926]
[1772700550224,4.96618141,2111.2,2110.5,2.95363926]
[1772700550537,4.96618141,2111.2,2110.5,1.18563416]
[1772700550915,1.90301592,2111.1,2110.5,1.18563416]
[1772700551339,3.06316549,2111.2,2110.5,1.18563416]
[1772700551514,1.879,2111.2,2110.5,1.18563416]
[1772700552235,3.06316689,2111.2,2110.5,1.18563416]
[1772700552435,4.96618281,2111.2,2110.5,1.18563416]
[1772700552740,3.78201592,2111.2,2110.5,2.93963383]
[1772700552929,3.78201592,2111.2,2110.2,0.0011]
[1772700552930,1.90301592,2111.1,2110.2,0.0011]
[1772700553129,1.90301592,2111.0,2110.2,0.0011]
[1772700553331,1.90301592,2111.0,2110.0,0.0011]
[1772700553534,1.90301592,2111.0,2110.0,1.18592589]
[1772700553734,1.90301592,2111.0,2110.0,0.0011]
[1772700554119,1.90301592,2111.0,2110.0,1.18592206]
[1772700554520,1.90301592,2111.0,2110.2,3.06950662]
[1772700554521,3.08734062,2111.0,2110.2,3.06950662]
[1772700554921,3.0872913,2111.0,2110.2,3.06950662]
[1772700555647,1.90301592,2110.9,2110.2,1.18472182]
[1772700555846,1.90301592,2110.9,2110.2,1.18582182]
[1772700556058,4.73709142,2111.2,2110.2,1.18582182]
[1772700556059,1.90301592,2111.2,2110.3,1.88031579]
[1772700556420,3.08719116,2111.2,2110.4,1.18460955]
[1772700556741,3.08719116,2111.2,2110.4,3.06043524]
[1772700557853,3.08719116,2111.2,2110.4,1.18460955]
[1772700558553,3.08719116,2111.2,2110.2,4.73953821]
[1772700558939,3.08719116,2111.2,2110.2,6.6055098]
[1772700559858,1.89679091,2111.1,2110.2,6.6055098]
[1772700560960,3.08103881,2111.1,2110.3,1.85711532]
[1772700561531,1.89679091,2111.1,2110.3,1.85711532]
[1772700561738,1.18419724,2111.2,2110.3,1.85711532]
[1772700561939,1.18505416,2111.4,2110.4,1.8526893]
[1772700562156,0.001,2111.4,2110.5,1.8526893]
[1772700562368,0.001,2111.4,2110.6,1.8526893]
[1772700563054,0.001,2111.4,2110.7,3.03270832]
[1772700563826,0.001,2111.4,2110.8,1.84385503]
[1772700564642,6.63213515,2111.8,2110.9,1.83844912]
[1772700564643,1.89679091,2111.8,2110.9,1.83844912]
[1772700564942,3.08048446,2112.1,2111.0,1.83844912]
[1772700565257,3.08048446,2112.1,2111.2,1.83844912]
[1772700565839,1.89679091,2112.0,2111.2,1.83844912]
[1772700567135,3.08055908,2111.9,2111.3,1.18410458]
[1772700567456,3.08155908,2111.9,2111.3,1.18410458]
[1772700568644,3.08155908,2111.9,2111.0,4.73686703]
[1772700568645,1.91270276,2111.8,2111.0,4.73688884]
[1772700569162,1.91270276,2112.3,2111.0,4.06311465]
[1772700569337,1.91270276,2112.3,2111.2,1.82000403]
[1772700569530,1.18343469,2112.5,2111.2,1.82000403]
[1772700569956,3.09613745,2112.5,2111.2,1.82000403]
[1772700570445,3.09615546,2112.5,2111.2,1.82000403]
[1772700570645,1.91270276,2112.5,2111.3,1.80987769]
[1772700571228,1.91270276,2112.5,2111.5,1.80987769]
[1772700571430,1.18330275,2112.8,2111.5,1.80987769]
[1772700572256,3.09600551,2112.8,2111.5,1.80987769]
[1772700572459,1.91270276,2112.8,2111.5,1.80987769]
[1772700572658,1.91270276,2112.8,2111.6,1.80124387]
[1772700572834,1.91270276,2112.8,2111.8,1.80124387]
[1772700573356,1.18315203,2113.0,2112.0,1.80124387]
[1772700573531,1.91270276,2113.0,2112.0,1.80124387]
[1772700573730,0.003,2113.1,2112.0,1.80124387]
[1772700573962,1.91570276,2113.1,2112.0,1.80124387]
[1772700574147,1.91270276,2113.0,2112.0,1.80124387]
[1772700574347,1.91270276,2113.0,2111.9,1.18376817]
[1772700575357,1.91270276,2112.8,2111.8,6.52623943]
[1772700575862,1.91270276,2112.8,2111.8,4.73507268]
[1772700577060,1.91270276,2112.8,2111.8,6.51768856]
[1772700577643,3.09596951,2112.8,2111.9,1.7783322]
[1772700578157,3.09596895,2112.8,2111.9,1.7783322]
[1772700578358,1.91270276,2112.7,2111.8,4.73507268]
[1772700578857,1.91270276,2112.7,2111.9,1.77407346]
[1772700579079,1.91270276,2113.0,2111.9,1.77407346]
[1772700579239,3.09586225,2113.0,2111.9,1.77407346]
[1772700579439,3.09586225,2113.0,2112.1,1.77407346]
[1772700579844,0.003,2113.1,2112.1,1.77407346]
[1772700580091,0.003,2113.1,2112.3,1.76981301]
[1772700580787,0.003,2113.1,2112.0,1.18371212]
[1772700580788,0.001,2112.6,2112.0,2.94928407]
[1772700581356,0.001,2112.6,2112.0,1.18371212]
[1772700583477,0.003,2113.1,2112.3,2.74427255]
[1772700583679,0.003,2113.1,2112.5,1.90445817]
[1772700585441,0.003,2113.1,2112.7,1.90445817]
[1772700585636,3.09526775,2114.1,2112.7,1.90445817]
[1772700586977,1.91270276,2114.0,2112.7,1.90445817]
[1772700587943,1.91270276,2113.8,2112.8,1.18326391]
[1772700588946,1.18264818,2113.9,2112.9,1.92095655]
[1772700589183,1.94907381,2113.8,2112.9,1.92095655]
[1772700590488,3.13181182,2113.8,2113.0,1.18315191]
[1772700590784,3.13181182,2113.8,2112.6,1.92095655]
[1772700590785,1.94907381,2113.7,2112.6,1.92095655]
[1772700590944,1.94907381,2113.7,2112.6,3.10433248]
[1772700591978,1.94907381,2113.7,2112.7,1.92095655]
[1772700592185,3.75800206,2113.9,2112.7,1.92095655]
[1772700592469,5.70707587,2113.9,2112.8,1.18326391]
[1772700592646,5.70707587,2113.9,2112.9,1.92095655]
[1772700592852,1.94907381,2113.8,2112.9,1.92095655]
[1772700593549,1.94907381,2114.2,2112.9,1.92095655]
[1772700594056,0.003,2114.3,2113.4,1.92095655]
[1772700594648,1.95207381,2114.3,2113.5,3.10382856]
[1772700594949,1.95207381,2114.3,2113.5,1.18287201]
[1772700595358,1.95207381,2114.3,2113.3,4.7318474]
[1772700595758,1.95207381,2114.3,2112.9,6.6536842]
[1772700596274,1.95207381,2114.3,2113.0,1.92095655]
[1772700596677,3.13161011,2114.1,2113.1,1.18309592]
[1772700596877,1.94907381,2114.0,2113.1,1.18309592]
[1772700599591,1.18264818,2113.9,2113.1,1.18309592]
[1772700599878,1.94907381,2113.8,2113.1,1.18309592]
[1772700600086,1.94907381,2113.8,2112.8,0.001]
[1772700600087,1.94907381,2113.8,2112.9,4.73282292]
[1772700600588,1.94907381,2113.8,2112.9,1.18320791]
[1772700600749,1.94907381,2113.8,2112.8,1.18422421]
[1772700601576,1.94907381,2113.8,2112.5,1.18443195]
[1772700601577,1.94907381,2113.6,2112.5,1.18443195]
[1772700601759,1.94907381,2113.6,2112.5,0.001]
[1772700602479,1.94907381,2113.4,2112.5,0.001]
[1772700602849,1.839,2113.3,2112.5,0.001]
[1772700603580,3.13211374,2113.2,2112.5,0.001]
[1772700603786,1.18303993,2113.2,2112.5,0.001]
[1772700604076,1.94907381,2113.1,2112.5,0.001]
[1772700605090,1.94907381,2113.1,2111.9,1.92095655]
[1772700605474,1.18315191,2113.0,2111.9,1.92095655]
[1772700605652,1.94907381,2112.8,2111.8,0.0011]
[1772700606281,1.94907381,2112.8,2111.8,1.18492339]
[1772700606489,1.839,2112.7,2111.8,1.18492339]
[1772700606871,1.839,2112.7,2111.8,0.0011]
[1772700606872,1.94907381,2112.6,2111.8,0.0011]
[1772700607458,1.18343195,2112.5,2111.8,0.0011]
[1772700607662,1.18343195,2112.5,2111.7,0.22176871]
[1772700607663,1.94907381,2112.4,2111.5,0.0011]
[1772700607962,1.94907381,2112.3,2111.5,0.0011]
[1772700609468,1.18360003,2112.2,2111.5,0.0011]
[1772700609678,1.838,2112.1,2111.5,0.0011]
[1772700609989,1.838,2112.0,2111.5,0.0011]
[1772700610165,1.837,2112.0,2111.5,0.0011]
[1772700611862,1.18376817,2111.9,2111.5,0.0011]
[1772700612485,1.837,2111.8,2111.5,0.0011]
[1772700612692,1.837,2111.8,2111.0,3.10519331]
[1772700612893,1.18376817,2111.9,2111.1,1.92095655]
[1772700613062,3.01975311,2112.0,2111.1,1.92095655]
[1772700613991,3.01975311,2112.0,2111.2,3.10511721]
[1772700613992,1.836,2111.9,2111.2,3.10511721]
[1772700614389,1.836,2111.9,2111.2,1.92095655]
[1772700614705,1.836,2111.9,2111.1,1.18418571]
[1772700614706,3.78507381,2111.9,2111.1,1.18418571]
[1772700614897,1.94907381,2111.9,2111.1,1.18418571]
[1772700615108,1.836,2111.8,2111.1,1.92095655]
[1772700615417,3.78507381,2111.8,2110.8,1.92095655]
[1772700615799,1.94907381,2111.7,2110.8,1.92095655]
[1772700616185,1.18393635,2111.6,2110.8,3.1053129]
[1772700616407,3.13301016,2111.6,2110.8,1.92095655]
[1772700616606,3.13301016,2111.6,2110.7,1.18439565]
[1772700616607,1.94907381,2111.5,2110.6,1.1844523]
[1772700616983,1.94907381,2111.5,2110.5,3.10546463]
[1772700617187,1.18393635,2111.6,2110.4,0.0011]
[1772700617188,1.94907381,2111.2,2110.4,0.0011]
[1772700617499,1.835,2111.1,2110.4,1.18570196]
[1772700617699,1.835,2111.0,2110.4,1.18570196]
[1772700618087,1.835,2111.0,2110.4,0.0011]
[1772700618308,1.1843146,2111.0,2110.4,0.0011]
[1772700618503,3.0193146,2111.0,2110.4,0.0011]
[1772700618811,3.0183146,2111.0,2110.4,0.0011]
[1772700620508,1.18426047,2111.1,2110.4,0.0011]
[1772700620815,1.834,2111.0,2110.6,0.0011]
[1772700621112,1.833,2111.0,2110.6,0.0011]
[1772700621418,3.01726047,2111.1,2110.6,0.0011]
[1772700621802,4.73643809,2111.3,2110.6,0.0011]
[1772700621803,1.18388028,2111.7,2110.7,2.02709801]
[1772700622004,1.833,2111.4,2110.7,2.02709801]
[1772700622812,1.833,2111.4,2110.6,0.0011]
[1772700622813,1.18410458,2111.3,2110.6,0.0011]
[1772700623013,8.44078317,2111.4,2110.7,2.02709801]
[1772700623014,1.832,2111.2,2110.7,2.02709801]
[1772700623696,1.832,2111.2,2110.6,1.18558592]
[1772700624232,4.88602092,2112.1,2110.7,2.02709801]
[1772700624522,3.01465607,2112.1,2110.7,2.02709801]
[1772700625093,3.01465607,2112.1,2110.9,2.02709801]
[1772700626294,1.18409112,2112.0,2110.9,2.02709801]
[1772700627216,1.18376817,2111.9,2111.1,1.92290188]
[1772700628485,1.18409112,2112.0,2111.1,1.92290188]
[1772700628709,2.36780426,2112.0,2111.1,1.92290188]
[1772700629121,2.36780426,2112.0,2111.0,1.18427285]
[1772700629122,1.83620077,2111.9,2111.0,1.18427285]
[1772700629321,1.83620077,2111.7,2110.8,1.184381]
[1772700629618,1.83620077,2111.7,2110.7,1.18440489]
[1772700629823,4.38727438,2111.8,2110.6,1.18556488]
[1772700629824,1.83620077,2111.5,2110.6,1.18556488]
[1772700630017,3.01209112,2111.4,2110.6,1.18556488]
[1772700630727,4.84829189,2111.4,2110.6,1.18556488]
[1772700631223,1.827,2111.3,2110.6,1.18556488]
[1772700631519,1.827,2111.3,2110.7,1.92290188]
[1772700631690,3.66320077,2111.3,2110.6,1.18556488]
[1772700632918,1.18409112,2111.2,2110.6,1.18556488]
[1772700633424,1.18409112,2111.2,2110.6,0.0011]
[1772700633425,1.18427285,2111.0,2110.6,0.0011]
[1772700634427,3.02029189,2110.9,2110.2,0.0011]
[1772700634607,1.83620077,2110.8,2110.2,0.0011]
[1772700634805,3.66120077,2110.7,2110.2,0.0011]
[1772700635013,1.18409112,2110.9,2110.2,1.18581706]
[1772700635214,1.18409112,2110.9,2110.3,1.92290188]
[1772700635417,1.18409112,2110.9,2110.4,1.18460955]
[1772700636414,2.36842008,2110.9,2110.4,1.18460955]
[1772700637300,2.36842008,2110.9,2110.3,3.10752344]
[1772700637504,2.36842008,2110.9,2110.3,1.18462156]
[1772700638326,1.18432896,2110.9,2110.3,1.18462156]
[1772700638500,3.02052062,2111.0,2110.3,1.18462156]
[1772700638708,3.00809112,2110.9,2110.3,1.18462156]
[1772700639723,1.18438506,2110.8,2110.2,3.10868382]
[1772700639904,1.18409112,2110.9,2110.2,3.10868382]
[1772700640219,1.823,2110.8,2110.2,3.10868382]
[1772700640823,1.823,2111.0,2110.3,1.92290188]
[1772700641621,1.823,2111.1,2110.3,1.92290188]
[1772700642197,3.00726223,2111.1,2110.4,1.18460955]
[1772700642399,3.00726223,2111.1,2110.4,3.10751143]
[1772700643129,3.00722804,2111.1,2110.4,3.10751143]
[1772700643333,1.822,2111.0,2110.4,3.10751143]
[1772700643838,3.65820077,2111.0,2110.4,1.18460955]
[1772700644854,1.18432895,2110.9,2110.4,0.0011]
[1772700646045,3.02052972,2110.9,2110.4,0.0011]
[1772700646538,1.83620077,2110.8,2110.4,0.0011]
[1772700646917,1.82,2111.0,2110.4,1.92400188]
[1772700647659,1.819,2111.0,2110.4,1.92400188]
[1772700649031,1.8261615,2110.9,2110.4,0.0011]
[1772700649838,1.8261615,2110.9,2110.2,0.0011]
[1772700650147,1.8261615,2110.8,2110.2,0.0011]
[1772700651141,1.8261615,2110.6,2110.2,0.0011]
[1772700651456,1.818,2110.5,2110.2,0.0011]
[1772700653162,1.8261615,2110.8,2110.2,0.0011]
[1772700653367,1.817,2110.8,2110.2,1.95871004]
[1772700653663,6.33,2110.9,2110.2,1.95871004]
[1772700653664,1.817,2110.9,2110.2,1.95871004]
[1772700653833,0.001,2111.1,2110.2,1.95871004]
[1772700654244,1.18522449,2111.1,2110.2,1.95871004]
[1772700654440,0.001,2111.1,2110.2,1.95871004]
[1772700655149,0.001,2111.1,2110.5,1.95761004]
[1772700655347,1.817,2111.6,2110.5,1.95761004]
[1772700655968,1.18389292,2111.7,2110.5,1.95761004]
[1772700656168,8.37961756,2111.8,2110.5,1.95761004]
[1772700656169,1.18482439,2111.8,2110.5,1.95761004]
[1772700656352,0.001,2111.8,2110.6,1.95761004]
[1772700656666,0.001,2111.8,2110.7,1.95761004]
[1772700656874,0.001,2110.9,2110.8,1.95761004]
[1772700657373,0.001,2111.8,2110.9,1.95761004]
[1772700659237,0.001,2111.8,2111.1,1.95761004]
[1772700660261,1.183544,2112.3,2111.1,1.95761004]
[1772700660462,1.8261615,2112.4,2111.1,1.95761004]
[1772700660771,1.8261615,2112.4,2111.2,1.95761004]
[1772700660772,3.00965124,2112.4,2111.2,1.95761004]
[1772700661261,3.00965124,2112.4,2111.3,1.18410458]
[1772700661466,3.00965124,2112.4,2111.4,1.95761004]
[1772700661967,1.8261615,2112.3,2111.1,6.69436054]
[1772700662747,1.8261615,2112.3,2110.9,4.73728679]
[1772700662748,1.8261615,2112.2,2110.9,4.73728679]
[1772700663364,1.8261615,2112.0,2110.9,4.73728679]
[1772700663675,1.8261615,2111.8,2110.9,4.73728679]
[1772700665357,3.01002926,2111.8,2110.9,6.69489683]
[1772700665665,4.82202926,2111.8,2110.9,6.69489683]
[1772700666500,2.99586776,2111.8,2110.9,6.69489683]
[1772700666647,1.8261615,2111.7,2110.7,4.73768183]
[1772700666990,1.8261615,2111.7,2110.7,6.69529187]
[1772700667570,1.18393635,2111.6,2110.8,1.95761004]
[1772700668691,1.18393635,2111.6,2111.1,0.0011]
[1772700669451,1.18376817,2111.9,2111.2,3.1417707]
[1772700670076,3.00992967,2111.9,2111.2,3.1417707]
[1772700670961,1.18474287,2112.0,2111.3,1.95761004]
[1772700671572,0.001,2112.0,2111.3,1.95761004]
[1772700671758,0.001,2112.0,2111.3,1.18406303]
[1772700671759,1.8271615,2112.0,2111.3,1.18406303]
[1772700671960,1.8271615,2112.0,2111.1,0.0011]
[1772700672165,1.8271615,2112.0,2111.1,1.18531222]
[1772700672553,1.8271615,2112.0,2111.1,0.0011]
[1772700672954,1.8271615,2112.0,2111.1,1.18530637]
[1772700673985,1.8261615,2111.8,2111.1,0.0011]
[1772700676389,1.8261615,2111.6,2111.1,0.0011]
[1772700676591,2.99288028,2111.7,2111.1,0.0011]
[1772700676793,4.81904178,2111.7,2111.1,0.0011]
[1772700677091,1.8261615,2111.6,2111.1,0.0011]
[1772700678493,1.8261615,2111.4,2110.9,0.0011]
[1772700679784,1.808,2111.3,2110.9,0.0011]
[1772700679978,3.62770286,2111.3,2110.9,0.0011]
[1772700680209,1.809,2111.2,2110.9,0.0011]
[1772700680412,1.18399242,2111.5,2110.9,0.0011]
[1772700680413,1.809,2111.4,2110.9,1.87187215]
[1772700681078,3.62870286,2111.6,2110.9,1.87187215]
[1772700681265,1.81970286,2111.8,2110.9,1.87187215]
[1772700681471,1.1838423,2111.8,2110.9,1.87187215]
[1772700681803,1.1838423,2111.8,2111.3,0.0011]
[1772700682000,0.001,2111.4,2111.3,0.0011]
[1772700682716,1.1838423,2111.8,2111.3,0.0011]
[1772700682906,0.001,2111.7,2111.3,0.0011]
[1772700685199,0.001,2111.6,2111.3,0.0011]
[1772700687110,1.18493635,2111.6,2111.3,0.0011]
[1772700688105,1.18376817,2111.9,2111.3,1.77217629]
[1772700688277,0.001,2111.7,2111.3,0.0011]
[1772700689106,1.77971369,2111.6,2111.3,0.0011]
[1772700689293,1.77871369,2111.6,2111.3,0.0011]
[1772700689726,0.001,2111.8,2111.3,0.0011]
[1772700689898,1.809,2111.8,2111.3,0.0011]
[1772700690099,2.96248186,2111.9,2111.3,0.0011]
[1772700690100,0.001,2111.7,2111.3,0.0011]
[1772700690626,4.73588868,2112.0,2111.3,1.77217629]
[1772700690627,1.18474716,2112.0,2111.3,1.77217629]
[1772700690828,0.001,2111.9,2111.3,1.77217629]
[1772700691206,0.001,2111.9,2111.3,2.95622705]
[1772700691902,3.58971369,2111.9,2111.3,0.0011]
[1772700692121,1.77871369,2111.8,2111.3,0.0011]
[1772700693329,0.001,2111.7,2111.3,1.77217629]
[1772700694330,2.99475023,2112.0,2111.3,1.77217629]
[1772700694536,0.001,2111.8,2111.3,1.77217629]
[1772700694837,0.001,2112.0,2111.4,1.77107629]
[1772700695439,4.73362097,2112.6,2111.6,1.77107629]
[1772700695733,2.96208962,2112.6,2111.6,1.77107629]
[1772700696308,1.77871369,2112.5,2111.6,1.77107629]
[1772700697842,1.77871369,2112.5,2111.6,2.95497227]
[1772700697843,1.77871369,2112.3,2111.6,2.95497227]
[1772700698136,1.81,2112.2,2111.6,2.95497227]
[1772700699637,1.77871369,2112.3,2111.6,2.95497227]
[1772700699807,2.96231131,2112.3,2111.6,2.95497227]
[1772700699997,4.77231131,2112.3,2111.6,2.95497227]
[1772700700268,1.18351798,2112.4,2111.7,1.77107629]
[1772700700440,1.81,2112.4,2111.7,1.77107629]
[1772700701811,1.183544,2112.3,2111.8,1.18382422]
[1772700702501,1.183544,2112.3,2111.7,1.77107629]
[1772700702704,1.77871369,2112.2,2111.6,4.73573812]
[1772700702929,1.77871369,2112.2,2111.6,1.77107629]
[1772700703134,2.96225769,2112.3,2111.6,1.77107629]
[1772700703710,2.96226498,2112.3,2111.6,1.77107629]
[1772700703936,1.77871369,2112.2,2111.5,1.77217629]
[1772700705035,1.18355129,2112.3,2111.5,1.77217629]
[1772700705414,2.99255129,2112.3,2111.5,1.77217629]
[1772700705801,4.77126498,2112.3,2111.5,1.77217629]
[1772700706036,4.77126498,2112.3,2111.6,1.18393635]
[1772700706822,4.77126498,2112.3,2111.6,2.95501264]
[1772700708533,0.001,2112.0,2111.6,2.95501264]
[1772700709729,0.001,2112.0,2111.5,0.0011]
[1772700709730,1.86910074,2112.0,2111.5,0.0011]
[1772700710625,1.18376817,2111.9,2111.5,0.0011]
[1772700711725,1.86810074,2111.8,2111.5,0.0011]
[1772700713230,3.05196998,2111.8,2111.5,0.0011]
[1772700713404,1.18380505,2111.9,2111.5,0.0011]
[1772700714018,3.05190579,2111.9,2111.5,0.0011]
[1772700714308,1.18472002,2112.0,2111.5,1.76785439]
[1772700714825,2.99272002,2112.0,2111.5,1.76785439]
[1772700715630,1.86810074,2111.9,2111.5,1.1850828]
[1772700716640,1.86810074,2111.9,2111.5,0.0011]
[1772700717646,1.86810074,2111.7,2111.5,0.0011]
[1772700718011,0.001,2112.0,2111.5,1.76785439]
[1772700718344,1.86810074,2112.7,2111.6,1.76675439]
[1772700718515,4.85930963,2112.9,2111.8,1.76675439]
[1772700718710,4.85930963,2112.9,2111.7,2.22929564]
[1772700718711,4.85930963,2112.9,2112.0,1.76675439]
[1772700720342,4.85930888,2112.9,2112.2,1.76675439]
[1772700720644,0.001,2112.7,2112.2,1.76675439]
[1772700722211,0.001,2112.7,2112.5,1.76675439]
[1772700722759,1.86810074,2113.4,2112.5,1.76675439]
[1772700722945,0.001,2113.3,2112.5,1.76675439]
[1772700724019,0.001,2113.2,2112.5,1.76675439]
[1772700724220,1.86810074,2113.5,2112.7,1.76675439]
[1772700724439,0.001,2113.4,2112.7,1.76675439]
[1772700725217,1.86910074,2113.4,2112.6,1.18337593]
[1772700726127,1.86910074,2113.4,2112.6,2.95013032]
[1772700726317,1.18298395,2113.3,2112.6,2.95013032]
[1772700726516,1.18298395,2113.3,2112.6,1.18337593]
[1772700726724,0.001,2113.2,2112.7,1.76675439]
[1772700726920,0.001,2113.5,2112.7,1.76675439]
[1772700727124,3.67410074,2113.6,2112.7,1.76675439]
[1772700727442,1.86810074,2113.6,2112.7,1.76675439]
[1772700727834,3.05092084,2113.6,2112.7,1.76675439]
[1772700728239,1.86810074,2113.6,2112.7,1.76675439]
[1772700728454,1.1828021,2113.7,2112.9,1.76675439]
[1772700729252,3.0508219,2113.8,2112.9,1.76675439]
[1772700729958,1.86810074,2113.7,2112.9,1.76675439]
[1772700730344,1.18281604,2113.6,2113.0,1.18315191]
[1772700730651,1.18281604,2113.6,2112.9,1.76675439]
[1772700730858,1.86810074,2113.5,2112.9,2.94996044]
[1772700732453,1.18292798,2113.4,2112.9,2.94996044]
[1772700732829,1.18292798,2113.4,2112.7,0.001]
[1772700732830,1.86810074,2113.3,2112.7,0.001]
[1772700733829,0.002,2113.5,2112.9,1.76675439]
[1772700734060,0.002,2113.7,2113.0,1.76675439]
[1772700734653,0.002,2113.7,2113.2,1.76675439]
[1772700734863,0.002,2113.7,2113.2,0.76675439]
[1772700735154,0.002,2113.7,2113.1,1.18309592]
[1772700735155,1.87010074,2113.7,2113.1,1.18309592]
[1772700737829,1.87010074,2113.7,2113.0,4.7323837]
[1772700738033,1.87010074,2113.7,2113.1,1.63436102]
[1772700738259,0.002,2113.7,2113.1,1.63436102]
[1772700739151,1.0,2113.6,2113.1,1.63436102]
[1772700739671,0.002,2113.7,2113.1,1.63436102]